bitfinex-derivatives/quotes_BNBF0:USTF0_20260114
["timestamp","ask_amount","ask_price","bid_price","bid_amount"]
[1768372058705,0.75617847,938.19,936.44,1.5890707]
[1768372058902,0.75617847,938.18,936.44,1.5890707]
[1768372059103,0.75617847,938.17,936.44,1.5890707]
[1768372059304,0.75617847,938.16,936.44,1.5890707]
[1768372059508,0.75617847,938.15,936.44,1.5890707]
[1768372059808,0.75617847,938.14,936.44,1.5890707]
[1768372060105,0.75617847,938.13,936.44,1.5890707]
[1768372060308,0.75617847,938.12,936.44,1.5890707]
[1768372060509,0.75617847,938.11,936.45,1.5890707]
[1768372060807,0.75617847,938.1,936.45,1.5890707]
[1768372061009,0.75617847,938.09,936.45,1.5890707]
[1768372061208,0.75617847,938.08,936.45,1.5890707]
[1768372061408,0.18560247,938.26,936.45,1.5890707]
[1768372061409,0.75617847,938.07,936.45,1.5890707]
[1768372061606,0.75617847,938.06,936.45,1.5890707]
[1768372061910,0.75617847,938.05,936.45,1.5890707]
[1768372062110,0.75617847,938.04,936.45,1.5890707]
[1768372062410,0.75617847,938.03,936.46,1.5890707]
[1768372062710,0.75617847,938.02,936.46,1.5890707]
[1768372062911,0.75617847,938.01,936.46,1.5890707]
[1768372063106,0.75617847,938.0,936.46,1.5890707]
[1768372063311,0.75617847,937.99,936.46,1.5890707]
[1768372063511,0.18560247,938.26,936.46,1.5890707]
[1768372063512,0.75617847,937.98,936.46,1.5890707]
[1768372063809,0.75617847,937.97,936.46,1.5890707]
[1768372064110,0.75617847,937.96,936.46,1.5890707]
[1768372064311,0.75617847,937.95,936.47,1.5890707]
[1768372064512,0.75617847,937.94,936.47,1.5890707]
[1768372064811,0.75617847,937.93,936.47,1.5890707]
[1768372065008,0.75617847,937.92,936.47,1.5890707]
[1768372065308,0.75617847,937.91,936.47,1.5890707]
[1768372065611,0.75617847,937.9,936.47,1.5890707]
[1768372065811,0.75617847,937.89,936.47,1.5890707]
[1768372066011,0.75617847,937.88,936.47,1.5890707]
[1768372066210,0.75617847,937.87,936.47,1.5890707]
[1768372066411,0.75617847,937.86,936.47,1.5890707]
[1768372066710,0.75617847,937.85,936.47,1.5890707]
[1768372066911,0.75617847,937.84,936.47,1.5890707]
[1768372067112,0.75617847,937.83,936.47,1.5890707]
[1768372067312,0.75617847,937.82,936.47,1.5890707]
[1768372067512,0.75617847,937.81,936.47,1.5890707]
[1768372067710,0.75617847,937.8,936.47,1.5890707]
[1768372068013,0.75617847,937.79,936.47,1.5890707]
[1768372068209,0.18560247,938.26,936.47,1.5890707]
[1768372068210,0.75617847,937.78,936.47,1.5890707]
[1768372068411,0.75617847,937.77,936.47,1.5890707]
[1768372068611,0.75617847,937.76,936.47,1.5890707]
[1768372068914,0.75617847,937.75,936.47,1.5890707]
[1768372069211,0.75617847,937.74,936.47,1.5890707]
[1768372069412,0.75617847,937.73,936.47,1.5890707]
[1768372069613,0.75617847,937.72,936.47,1.5890707]
[1768372069813,0.75617847,937.71,936.47,1.5890707]
[1768372070013,0.75617847,937.7,936.47,1.5890707]
[1768372070314,0.75617847,937.69,936.48,1.5890707]
[1768372070515,0.75617847,937.68,936.48,1.5890707]
[1768372070713,0.75617847,937.67,936.48,1.5890707]
[1768372070912,0.75617847,937.66,936.48,1.5890707]
[1768372071114,0.75617847,937.65,936.48,1.5890707]
[1768372071318,0.75617847,937.64,936.48,1.5890707]
[1768372071513,0.75617847,937.63,936.48,1.5890707]
[1768372071814,0.75617847,937.62,936.48,1.5890707]
[1768372072014,0.75617847,937.61,936.48,1.5890707]
[1768372072317,0.75617847,937.6,936.47,1.5890707]
[1768372072514,0.75617847,937.59,936.47,1.5890707]
[1768372072717,0.75617847,937.58,936.47,1.5890707]
[1768372073016,0.75617847,937.57,936.47,1.5890707]
[1768372073317,0.75617847,937.56,936.48,1.5890707]
[1768372073514,0.75617847,937.55,936.48,1.5890707]
[1768372073713,0.75617847,937.54,936.48,1.5890707]
[1768372073912,0.75617847,937.53,936.48,1.5890707]
[1768372074214,0.75617847,937.52,936.5,1.5890707]
[1768372074414,0.75617847,937.51,936.5,1.5890707]
[1768372074615,0.75617847,937.5,936.5,1.5890707]
[1768372074812,0.75617847,937.49,936.5,1.5890707]
[1768372075013,0.75617847,937.48,936.5,1.5890707]
[1768372075214,0.75617847,937.47,936.52,1.5890707]
[1768372075415,0.75617847,937.46,936.52,1.5890707]
[1768372075612,0.75617847,937.45,936.52,1.5890707]
[1768372075814,0.75617847,937.44,936.52,1.5890707]
[1768372076014,0.75617847,937.43,936.52,1.5890707]
[1768372076215,0.75617847,937.42,936.54,1.5890707]
[1768372076415,0.75617847,937.41,936.54,1.5890707]
[1768372076718,0.75617847,937.4,936.54,1.5890707]
[1768372076918,0.75617847,937.39,936.54,1.5890707]
[1768372077118,0.75617847,937.38,936.54,1.5890707]
[1768372077316,0.75617847,937.37,936.54,1.5890707]
[1768372077616,0.75617847,937.36,936.54,1.5890707]
[1768372077818,0.75617847,937.35,936.54,1.5890707]
[1768372078016,0.75617847,937.34,936.54,1.5890707]
[1768372078319,0.75617847,937.33,936.54,1.5890707]
[1768372078516,0.75617847,937.32,936.54,1.5890707]
[1768372078720,0.18560247,938.26,936.54,1.5890707]
[1768372078721,0.75617847,937.31,936.54,1.5890707]
[1768372078917,0.75617847,937.3,936.54,1.5890707]
[1768372079217,0.75617847,937.29,936.54,1.5890707]
[1768372079417,0.75617847,937.28,936.54,1.5890707]
[1768372079618,0.75617847,937.27,936.54,1.5890707]
[1768372079818,0.75617847,937.26,936.54,1.5890707]
[1768372080021,0.75617847,937.25,936.54,1.5890707]
[1768372080218,0.75617847,937.24,936.52,1.5890707]
[1768372080522,0.75617847,937.23,936.52,1.5890707]
[1768372080820,0.75617847,937.22,936.52,1.5890707]
[1768372081021,0.75617847,937.21,936.52,1.5890707]
[1768372081220,0.75617847,937.2,936.52,1.5890707]
[1768372081417,0.75617847,937.19,936.52,1.5890707]
[1768372081618,0.75617847,937.18,936.52,1.5890707]
[1768372081916,0.75617847,937.17,936.52,1.5890707]
[1768372082120,0.75617847,937.16,936.52,1.5890707]
[1768372082321,0.75617847,937.15,936.52,1.5890707]
[1768372082522,0.75617847,937.14,936.52,1.5890707]
[1768372082718,0.75617847,937.13,936.52,1.5890707]
[1768372082916,0.75617847,937.12,936.52,1.5890707]
[1768372083121,0.75617847,937.11,936.52,1.5890707]
[1768372083322,0.75617847,937.1,936.52,1.5890707]
[1768372083518,0.75617847,937.09,936.52,1.5890707]
[1768372083818,0.75617847,937.08,936.52,1.5890707]
[1768372084020,0.75617847,937.07,936.52,1.5890707]
[1768372084223,0.75617847,937.06,936.52,1.5890707]
[1768372084424,0.75617847,937.05,936.51,1.5890707]
[1768372084724,0.75617847,937.04,936.51,1.5890707]
[1768372085024,0.75617847,937.03,936.51,1.5890707]
[1768372085224,0.18560247,938.26,936.51,1.5890707]
[1768372085225,0.75617847,937.02,936.51,1.5890707]
[1768372085425,0.75617847,937.01,936.51,1.5890707]
[1768372085621,0.75617847,937.0,936.51,1.5890707]
[1768372085926,0.75617847,936.99,936.51,1.5890707]
[1768372086123,0.75617847,936.98,936.51,1.5890707]
[1768372086327,0.75617847,936.97,936.51,1.5890707]
[1768372086626,0.75617847,936.96,936.51,1.5890707]
[1768372086823,0.75617847,936.95,936.51,1.5890707]
[1768372087126,0.75617847,936.94,936.51,1.5890707]
[1768372087321,0.75617847,936.93,936.51,1.5890707]
[1768372087522,0.75617847,936.92,936.51,1.5890707]
[1768372087823,0.75617847,936.91,936.51,1.5890707]
[1768372088027,0.75617847,936.9,936.51,1.5890707]
[1768372088220,0.75617847,936.89,936.51,1.5890707]
[1768372088423,0.75617847,936.88,936.51,1.5890707]
[1768372088623,0.75617847,936.87,936.51,1.5890707]
[1768372088827,0.75617847,936.86,936.51,1.5890707]
[1768372089027,0.75617847,936.85,936.51,1.5890707]
[1768372089331,0.75617847,936.84,936.51,1.5890707]
[1768372089624,0.18560247,938.26,936.51,1.5890707]
[1768372089927,0.00848596,937.79,936.51,1.5890707]
[1768372090127,0.75980012,937.78,936.51,1.5890707]
[1768372090328,0.75980012,937.77,936.51,1.5890707]
[1768372090525,0.75980012,937.76,936.51,1.5890707]
[1768372090728,0.75980012,937.75,936.51,1.5890707]
[1768372090928,0.75980012,937.74,936.51,1.5890707]
[1768372091125,0.75980012,937.73,936.51,1.5890707]
[1768372091327,0.75980012,937.72,936.51,1.5890707]
[1768372091527,0.75980012,937.71,936.51,1.5890707]
[1768372091727,0.75980012,937.7,936.51,1.5890707]
[1768372091928,0.75980012,937.69,936.51,1.5890707]
[1768372092132,0.75980012,937.68,936.51,1.5890707]
[1768372092331,0.75980012,937.67,936.51,1.5890707]
[1768372092530,0.75980012,937.66,936.51,1.5890707]
[1768372092732,0.75980012,937.65,936.51,1.5890707]
[1768372092932,0.18560247,938.26,936.44,1.5890707]
[1768372092933,0.75980012,937.64,936.44,1.5890707]
[1768372093131,0.75980012,937.63,936.44,1.5890707]
[1768372093329,0.75971656,937.62,936.43,1.5890707]
[1768372093529,0.75971656,937.61,936.43,1.5890707]
[1768372093730,0.75971656,937.6,936.43,1.5890707]
[1768372093927,0.75971656,937.59,936.43,1.5890707]
[1768372094132,0.75971656,937.58,936.32,1.5890707]
[1768372094328,0.75971656,937.57,936.3,1.5890707]
[1768372094531,0.75971656,937.56,936.3,1.5890707]
[1768372094731,0.75971656,937.55,936.3,1.5890707]
[1768372094933,0.75971656,937.54,936.3,1.5890707]
[1768372095130,0.75971656,937.53,936.3,1.5890707]
[1768372095330,0.75971656,937.52,936.29,1.5890707]
[1768372095531,0.75971656,937.51,936.29,1.5890707]
[1768372095733,0.75971656,937.5,936.29,1.5890707]
[1768372095933,0.75971656,937.49,936.29,1.5890707]
[1768372096134,0.75971656,937.48,936.29,1.5890707]
[1768372096336,0.75971656,937.47,936.28,1.5890707]
[1768372096534,0.75971656,937.46,936.28,1.5890707]
[1768372096730,0.75971656,937.45,936.28,1.5890707]
[1768372097030,0.75971656,937.44,936.28,1.5890707]
[1768372097233,0.75971656,937.43,936.28,1.5890707]
[1768372097429,0.75971656,937.42,936.27,1.5890707]
[1768372097630,0.75971656,937.41,936.27,1.5890707]
[1768372097928,0.75971656,937.4,936.27,1.5890707]
[1768372098133,0.75971656,937.39,936.27,1.5890707]
[1768372098331,0.75971656,937.38,936.26,1.5890707]
[1768372098535,0.75971656,937.37,936.26,1.5890707]
[1768372098735,0.75971656,937.36,936.26,1.5890707]
[1768372099035,0.75971656,937.35,936.21,0.18572431]
[1768372099331,0.75971656,937.34,936.21,0.18572431]
[1768372099532,0.75971656,937.33,936.21,0.18572431]
[1768372099734,0.75971656,937.32,936.21,0.18572431]
[1768372099934,0.75971656,937.31,936.21,0.18572431]
[1768372100135,0.75971656,937.3,936.21,0.18572431]
[1768372100330,0.18560247,938.26,936.21,0.18572431]
[1768372100331,0.75971656,937.29,936.21,0.18572431]
[1768372100531,0.75971656,937.28,936.21,0.18572431]
[1768372100731,0.75971656,937.27,936.21,0.18572431]
[1768372100936,0.75971656,937.26,936.21,0.18572431]
[1768372101136,0.75971656,937.25,936.21,0.18572431]
[1768372101336,0.75971656,937.24,936.21,0.18572431]
[1768372101535,0.75971656,937.23,936.21,0.18572431]
[1768372101734,0.75971656,937.22,936.21,0.18572431]
[1768372102033,0.75971656,937.21,936.21,0.18572431]
[1768372102339,0.75971656,937.2,936.21,0.18572431]
[1768372102638,0.75971656,937.19,936.21,0.18572431]
[1768372102934,0.75971656,937.18,936.21,0.18572431]
[1768372103238,0.75971656,937.17,936.21,0.18572431]
[1768372103435,0.75971656,937.16,936.21,0.18572431]
[1768372103734,0.75971656,937.15,936.21,0.18572431]
[1768372104038,0.75971656,937.14,936.21,0.18572431]
[1768372104337,0.75971656,937.13,936.21,0.18572431]
[1768372104533,0.75971656,937.12,936.21,0.18572431]
[1768372104739,0.75971656,937.11,936.21,0.18572431]
[1768372104935,0.75971656,937.1,936.21,0.18572431]
[1768372105136,0.75971656,937.09,936.21,0.18572431]
[1768372105336,0.75971656,937.08,936.21,0.18572431]
[1768372105637,0.75971656,937.07,936.21,0.18572431]
[1768372105834,0.75971656,937.06,936.21,0.18572431]
[1768372106137,0.75971656,937.05,936.21,0.18572431]
[1768372106338,0.75971656,937.04,936.21,0.18572431]
[1768372106634,0.75971656,937.03,936.21,0.18572431]
[1768372106835,0.75971656,937.02,936.21,0.18572431]
[1768372107035,0.75971656,937.01,936.21,0.18572431]
[1768372107234,0.75971656,937.0,936.21,0.18572431]
[1768372107535,0.75971656,936.99,936.21,0.18572431]
[1768372107836,0.75971656,936.98,936.21,0.18572431]
[1768372108035,0.75971656,936.97,936.21,0.18572431]
[1768372108234,0.75971656,936.96,936.21,0.18572431]
[1768372108437,0.75971656,936.95,936.21,0.18572431]
[1768372108733,0.75971656,936.94,936.21,0.18572431]
[1768372108934,0.75971656,936.93,936.21,0.18572431]
[1768372109134,0.75971656,936.92,936.21,0.18572431]
[1768372109435,0.75971656,936.91,936.21,0.18572431]
[1768372109639,0.75971656,936.9,936.21,0.18572431]
[1768372109934,0.75971656,936.89,936.21,0.18572431]
[1768372110139,0.75971656,936.88,936.21,0.18572431]
[1768372110336,0.75971656,936.87,936.21,0.18572431]
[1768372110536,0.75971656,936.86,936.21,0.18572431]
[1768372110839,0.75971656,936.85,936.21,0.18572431]
[1768372111135,0.75971656,936.84,936.21,0.18572431]
[1768372111340,0.75971656,936.83,936.21,0.18572431]
[1768372111537,0.75971656,936.82,936.21,0.18572431]
[1768372111734,0.75971656,936.81,936.21,0.18572431]
[1768372111939,0.75971656,936.8,936.21,0.18572431]
[1768372112140,0.18560247,938.26,936.21,0.18572431]
[1768372112141,0.75971656,936.79,936.21,0.18572431]
[1768372112335,0.75971656,936.78,936.21,0.18572431]
[1768372112536,0.75971656,936.77,936.21,0.18572431]
[1768372112738,0.75971656,936.76,936.21,0.18572431]
[1768372112938,0.75971656,936.75,936.21,0.18572431]
[1768372113137,0.75971656,936.74,936.21,0.18572431]
[1768372113337,0.75971656,936.73,936.21,0.18572431]
[1768372113540,0.75971656,936.72,936.21,0.18572431]
[1768372113738,0.75971656,936.71,936.21,0.18572431]
[1768372114041,0.75971656,936.7,936.21,0.18572431]
[1768372114237,0.75971656,936.69,936.21,0.18572431]
[1768372114440,0.75971656,936.68,936.21,0.18572431]
[1768372114636,0.01359767,937.65,936.21,0.18572431]
[1768372114637,0.75971656,936.67,936.21,0.18572431]
[1768372114838,0.75971656,936.66,936.21,0.18572431]
[1768372115042,0.75971656,936.65,936.21,0.18572431]
[1768372115244,0.75971656,936.64,936.21,0.18572431]
[1768372115444,0.75971656,936.63,936.21,0.18572431]
[1768372115743,0.75971656,936.62,936.21,0.18572431]
[1768372115941,0.75971656,936.61,936.21,0.18572431]
[1768372116140,0.00776579,937.57,936.21,0.18572431]
[1768372116343,0.75617718,937.56,936.21,0.18572431]
[1768372116541,0.75617718,937.55,936.21,0.18572431]
[1768372116741,0.75617718,937.54,936.21,0.18572431]
[1768372116942,0.75617718,937.53,936.21,0.18572431]
[1768372117145,0.75617718,937.52,936.21,0.18572431]
[1768372117442,0.75617718,937.51,936.21,0.18572431]
[1768372117741,0.75617718,937.5,936.21,0.18572431]
[1768372117940,0.75617718,937.49,936.21,0.18572431]
[1768372118144,0.75617718,937.48,936.21,0.18572431]
[1768372118446,0.75617718,937.47,936.21,0.18572431]
[1768372118649,0.75617718,937.46,936.21,0.18572431]
[1768372118945,0.75617718,937.45,936.21,0.18572431]
[1768372119246,0.75617718,937.44,936.21,0.18572431]
[1768372119550,0.75617718,937.43,936.21,0.18572431]
[1768372119749,0.18560247,938.26,936.21,0.18572431]
[1768372119750,0.75617718,937.42,936.21,0.18572431]
[1768372119948,0.75617718,937.41,936.21,0.18572431]
[1768372120250,0.75617718,937.4,936.21,0.18572431]
[1768372120451,0.75617718,937.39,936.21,0.18572431]
[1768372120647,0.75617718,937.38,936.21,0.18572431]
[1768372120853,0.75617718,937.37,936.21,0.18572431]
[1768372121049,0.75617718,937.36,936.21,0.18572431]
[1768372121249,0.75617718,937.35,936.21,0.18572431]
[1768372121448,0.18560247,938.26,936.21,0.18572431]
[1768372121449,0.75617718,937.34,936.21,0.18572431]
[1768372121652,0.75617718,937.33,936.21,0.18572431]
[1768372121850,0.75617718,937.32,936.21,0.18572431]
[1768372122056,0.75617718,937.31,936.21,0.18572431]
[1768372122251,0.75617718,937.3,936.21,0.18572431]
[1768372122551,0.75617718,937.29,936.21,0.18572431]
[1768372122750,0.75617718,937.28,936.21,0.18572431]
[1768372122954,0.75617718,937.27,936.21,0.18572431]
[1768372123151,0.75617718,937.26,936.21,0.18572431]
[1768372123454,0.75617718,937.25,936.21,0.18572431]
[1768372123654,0.75617718,937.24,936.21,0.18572431]
[1768372123852,0.75617718,937.23,936.21,0.18572431]
[1768372124051,0.75617718,937.22,936.21,0.18572431]
[1768372124355,0.75617718,937.21,936.21,0.18572431]
[1768372124553,0.75617718,937.2,936.21,0.18572431]
[1768372124753,0.75617718,937.19,936.21,0.18572431]
[1768372124955,0.75617718,937.18,936.21,0.18572431]
[1768372125151,0.75617718,937.17,936.21,0.18572431]
[1768372125456,0.75617718,937.16,936.21,0.18572431]
[1768372125758,0.75617718,937.15,936.21,0.18572431]
[1768372125952,0.75617718,937.14,936.21,0.18572431]
[1768372126154,0.75617718,937.13,936.21,0.18572431]
[1768372126350,0.75617718,937.12,936.21,0.18572431]
[1768372126555,0.75617718,937.11,936.21,0.18572431]
[1768372126756,0.75617718,937.1,936.21,0.18572431]
[1768372126952,0.00954644,938.07,936.21,0.18572431]
[1768372126953,0.75617718,937.09,936.21,0.18572431]
[1768372127156,0.75617718,937.08,936.21,0.18572431]
[1768372127456,0.75617718,937.07,936.21,0.18572431]
[1768372127654,0.75617718,937.06,936.21,0.18572431]
[1768372127853,0.75617718,937.05,936.21,0.18572431]
[1768372128058,0.75617718,937.04,936.21,0.18572431]
[1768372128252,0.75617718,937.03,936.21,0.18572431]
[1768372128557,0.75617718,937.02,936.21,0.18572431]
[1768372128757,0.75617718,937.01,936.21,0.18572431]
[1768372128954,0.75617718,937.0,936.21,0.18572431]
[1768372129257,0.75570032,936.99,936.21,0.18572431]
[1768372129458,0.75570032,936.98,936.21,0.18572431]
[1768372129654,0.75570032,936.97,936.21,0.18572431]
[1768372129853,0.75570032,936.96,936.21,0.18572431]
[1768372130057,0.75579713,936.95,936.21,0.18572431]
[1768372130358,0.75579713,936.94,936.21,0.18572431]
[1768372130558,0.75579713,936.93,936.21,0.18572431]
[1768372130758,0.75579713,936.92,936.21,0.18572431]
[1768372131059,0.75579713,936.91,936.21,0.18572431]
[1768372131254,0.75579713,936.9,936.21,0.18572431]
[1768372131458,0.75579713,936.89,936.21,0.18572431]
[1768372131655,0.75579713,936.88,936.21,0.18572431]
[1768372131958,0.75579713,936.87,936.21,0.18572431]
[1768372132260,0.75579713,936.86,936.21,0.18572431]
[1768372132461,0.75579713,936.85,936.21,0.18572431]
[1768372132660,0.75579713,936.84,936.21,0.18572431]
[1768372132857,0.75579713,936.83,936.21,0.18572431]
[1768372133158,0.75579713,936.82,936.21,0.18572431]
[1768372133356,0.75579713,936.81,936.21,0.18572431]
[1768372133561,0.75579713,936.8,936.21,0.18572431]
[1768372133757,0.75579713,936.79,936.21,0.18572431]
[1768372134060,0.75579713,936.78,936.21,0.18572431]
[1768372134256,0.75579713,936.77,936.21,0.18572431]
[1768372134460,0.75579713,936.76,936.21,0.18572431]
[1768372134658,0.75579713,936.75,936.21,0.18572431]
[1768372134861,0.75579713,936.74,936.21,0.18572431]
[1768372135058,0.00786974,937.7,936.26,1.5890707]
[1768372135259,0.75656808,937.69,936.26,1.5890707]
[1768372135458,0.75656808,937.68,936.27,1.5890707]
[1768372135660,0.18560247,938.26,936.27,1.5890707]
[1768372135661,0.75656808,937.67,936.27,1.5890707]
[1768372135860,0.75656808,937.66,936.27,1.5890707]
[1768372136060,0.75656808,937.65,936.27,1.5890707]
[1768372136259,0.18560247,938.26,936.27,1.5890707]
[1768372136260,0.75656808,937.64,936.27,1.5890707]
[1768372136462,0.75656808,937.63,936.28,1.5890707]
[1768372136659,0.75656808,937.62,936.28,1.5890707]
[1768372136960,0.75656808,937.61,936.28,1.5890707]
[1768372137163,0.75656808,937.6,936.28,1.5890707]
[1768372137364,0.75656808,937.59,936.28,1.5890707]
[1768372137562,0.75656808,937.58,936.28,1.5890707]
[1768372137761,0.75656808,937.57,936.28,1.5890707]
[1768372137963,0.75656808,937.56,936.28,1.5890707]
[1768372138163,0.75656808,937.55,936.27,1.5890707]
[1768372138363,0.75656808,937.54,936.27,1.5890707]
[1768372138563,0.75656808,937.53,936.27,1.5890707]
[1768372138764,0.75656808,937.52,936.27,1.5890707]
[1768372138961,0.75656808,937.51,936.27,1.5890707]
[1768372139163,0.75656808,937.5,936.27,1.5890707]
[1768372139364,0.75656808,937.49,936.27,1.5890707]
[1768372139564,0.75656808,937.48,936.27,1.5890707]
[1768372139766,0.75656808,937.47,936.27,1.5890707]
[1768372139965,0.75656808,937.46,936.27,1.5890707]
[1768372140165,0.75656808,937.45,936.27,1.5890707]
[1768372140364,0.75656808,937.44,936.27,1.5890707]
[1768372140568,0.75656808,937.43,936.27,1.5890707]
[1768372140768,0.75656808,937.42,936.27,1.5890707]
[1768372141064,0.75656808,937.41,936.27,1.5890707]
[1768372141265,0.75656808,937.4,936.27,1.5890707]
[1768372141467,0.75656808,937.39,936.27,1.5890707]
[1768372141666,0.75656808,937.38,936.27,1.5890707]
[1768372141868,0.75656808,937.37,936.27,1.5890707]
[1768372142165,0.75656808,937.36,936.27,1.5890707]
[1768372142465,0.75656808,937.35,936.27,1.5890707]
[1768372142666,0.75656808,937.34,936.27,1.5890707]
[1768372142868,0.75656808,937.33,936.28,1.5890707]
[1768372143069,0.75656808,937.32,936.28,1.5890707]
[1768372143269,0.75656808,937.31,936.27,1.5890707]
[1768372143573,0.75656808,937.3,936.27,1.5890707]
[1768372143872,0.75656808,937.29,936.27,1.5890707]
[1768372144069,0.75656808,937.28,936.27,1.5890707]
[1768372144271,0.75656808,937.27,936.27,1.5890707]
[1768372144470,0.75656808,937.26,936.27,1.5890707]
[1768372144668,0.75656808,937.25,936.27,1.5890707]
[1768372144872,0.75656808,937.24,936.27,1.5890707]
[1768372145071,0.75656808,937.23,936.27,1.5890707]
[1768372145275,0.75656808,937.22,936.27,1.5890707]
[1768372145575,0.75656808,937.21,936.26,1.5890707]
[1768372145771,0.75656808,937.2,936.26,1.5890707]
[1768372146073,0.75656808,937.19,936.26,1.5890707]
[1768372146272,0.75656808,937.18,936.26,1.5890707]
[1768372146469,0.75656808,937.17,936.26,1.5890707]
[1768372146672,0.75656808,937.16,936.26,1.5890707]
[1768372146873,0.75656808,937.15,936.26,1.5890707]
[1768372147077,0.75656808,937.14,936.26,1.5890707]
[1768372147274,0.75656808,937.13,936.26,1.5890707]
[1768372147574,0.75656808,937.12,936.26,1.5890707]
[1768372147776,0.75656808,937.11,936.26,1.5890707]
[1768372147978,0.75656808,937.1,936.26,1.5890707]
[1768372148173,0.75656808,937.09,936.26,1.5890707]
[1768372148473,0.75656808,937.08,936.25,1.5890707]
[1768372148676,0.75656808,937.07,936.25,1.5890707]
[1768372148976,0.75656808,937.06,936.25,1.5890707]
[1768372149176,0.75656808,937.05,936.25,1.5890707]
[1768372149371,0.75656808,937.04,936.25,1.5890707]
[1768372149577,0.75656808,937.03,936.25,1.5890707]
[1768372149776,0.75656808,937.02,936.25,1.5890707]
[1768372149972,0.75656808,937.01,936.25,1.5890707]
[1768372150174,0.75656808,937.0,936.25,1.5890707]
[1768372150376,0.75656808,936.99,936.24,1.5890707]
[1768372150577,0.75656808,936.98,936.24,1.5890707]
[1768372150877,0.75656808,936.97,936.24,1.5890707]
[1768372151178,0.75656808,936.96,936.24,1.5890707]
[1768372151475,0.75656808,936.95,936.24,1.5890707]
[1768372151676,0.75656808,936.94,936.24,1.5890707]
[1768372151876,0.75656808,936.93,936.24,1.5890707]
[1768372152075,0.75656808,936.92,936.24,1.5890707]
[1768372152274,0.75656808,936.91,936.24,1.5890707]
[1768372152578,0.18560247,938.26,936.24,1.5890707]
[1768372152776,0.75646285,938.25,936.24,1.5890707]
[1768372152977,0.01068195,937.85,936.24,1.5890707]
[1768372153276,0.75646285,937.84,936.24,1.5890707]
[1768372153475,0.75646285,937.83,936.24,1.5890707]
[1768372153676,0.75646285,937.82,936.24,1.5890707]
[1768372153878,0.75646285,937.81,936.24,1.5890707]
[1768372154078,0.75646285,937.8,936.24,1.5890707]
[1768372154275,0.75646285,937.79,936.24,1.5890707]
[1768372154480,0.75646285,937.78,936.23,1.5890707]
[1768372154675,0.18560247,938.26,936.23,1.5890707]
[1768372154676,0.75646285,937.77,936.23,1.5890707]
[1768372154881,0.75646285,937.76,936.23,1.5890707]
[1768372155077,0.75646285,937.75,936.35,1.5890707]
[1768372155380,0.75646285,937.74,936.35,1.5890707]
[1768372155580,0.75646285,937.73,936.35,1.5890707]
[1768372155778,0.75646285,937.72,936.35,1.5890707]
[1768372155981,0.75646285,937.71,936.35,1.5890707]
[1768372156277,0.75646285,937.7,936.34,1.5890707]
[1768372156478,0.75646285,937.69,936.34,1.5890707]
[1768372156681,0.75646285,937.68,936.34,1.5890707]
[1768372156881,0.75646285,937.67,936.34,1.5890707]
[1768372157081,0.75646285,937.66,936.34,1.5890707]
[1768372157378,0.75646285,937.65,936.34,1.5890707]
[1768372157582,0.75646285,937.64,936.34,1.5890707]
[1768372157778,0.75646285,937.63,936.34,1.5890707]
[1768372157982,0.75646285,937.62,936.34,1.5890707]
[1768372158182,0.75646285,937.61,936.34,1.5890707]
[1768372158378,0.75646285,937.6,936.34,1.5890707]
[1768372158679,0.75646285,937.59,936.34,1.5890707]
[1768372158982,0.75646285,937.58,936.34,1.5890707]
[1768372159181,0.75646285,937.57,936.34,1.5890707]
[1768372159381,0.75646285,937.56,936.33,1.5890707]
[1768372159578,0.75646285,937.55,936.33,1.5890707]
[1768372159781,0.75646285,937.54,936.33,1.5890707]
[1768372160078,0.75646285,937.53,936.33,1.5890707]
[1768372160281,0.75646285,937.52,936.33,1.5890707]
[1768372160479,0.75646285,937.51,936.33,1.5890707]
[1768372160680,0.75646285,937.5,936.33,1.5890707]
[1768372160879,0.75646285,937.49,936.33,1.5890707]
[1768372161083,0.75646285,937.48,936.33,1.5890707]
[1768372161278,0.75646285,937.47,936.33,1.5890707]
[1768372161479,0.75646285,937.46,936.33,1.5890707]
[1768372161679,0.75646285,937.45,936.33,1.5890707]
[1768372161882,0.75646285,937.44,936.33,1.5890707]
[1768372162082,0.75646285,937.43,936.33,1.5890707]
[1768372162377,0.75646285,937.42,936.33,1.5890707]
[1768372162582,0.75646285,937.41,936.33,1.5890707]
[1768372162879,0.75646285,937.4,936.33,1.5890707]
[1768372163082,0.75646285,937.39,936.33,1.5890707]
[1768372163282,0.75646285,937.38,936.33,1.5890707]
[1768372163483,0.75646285,937.37,936.33,1.5890707]
[1768372163684,0.75646285,937.36,936.33,1.5890707]
[1768372163884,0.75646285,937.35,936.33,1.5890707]
[1768372164085,0.75646285,937.34,936.33,1.5890707]
[1768372164284,0.75646285,937.33,936.33,1.5890707]
[1768372164485,0.75646285,937.32,936.33,1.5890707]
[1768372164685,0.75646285,937.31,936.33,1.5890707]
[1768372164886,0.75646285,937.3,936.33,1.5890707]
[1768372165085,0.75646285,937.29,936.33,1.5890707]
[1768372165382,0.7561731,937.28,936.34,1.5890707]
[1768372165585,0.7561731,937.27,936.34,1.5890707]
[1768372165885,0.7561731,937.26,936.34,1.5890707]
[1768372166082,0.7561731,937.25,936.33,1.5890707]
[1768372166287,0.7561731,937.24,936.33,1.5890707]
[1768372166584,0.7561731,937.23,936.34,1.5890707]